fUSD/lending_fUSD_20241230
["ID","MTS","AMOUNT","RATE_DAILY","PERIOD"]
[347169281,1735541440412,-150.0,0.00016206,2]
[347169283,1735541440422,-150.0,0.00016217,2]
[347169285,1735541440433,-150.0,0.00016217,2]
[347169287,1735541440443,-150.0,0.00016224,2]
[347169289,1735541440453,-205.0,0.0001623,2]
[347169291,1735541440463,-10263.45099983,0.00016238,2]
[347169293,1735541440473,-150.0,0.00016246,2]
[347169295,1735541440483,-984.15,0.00016253,2]
[347169297,1735541440493,-500.0,0.00016256,2]
[347169325,1735541440743,-1094.66,0.00016256,2]
[347169328,1735541440759,-1240.93,0.00016256,2]
[347169330,1735541440769,-1561.59,0.00016256,2]
[347169332,1735541440778,-500.0,0.00016256,2]
[347169334,1735541440788,-1000.21,0.00016256,2]
[347169336,1735541440796,-500.0,0.00016256,2]
[347169338,1735541440807,-500.0,0.00016256,2]
[347169340,1735541440817,-578.16,0.00016256,2]
[347169342,1735541440827,-1990.63929227,0.00016256,2]
[347169349,1735541440889,-493.43,0.00014987,2]
[347169350,1735541440898,-500.0,0.00015708,2]
[347169351,1735541440907,-500.0,0.00015982,2]
[347169352,1735541440915,-590.56070773,0.00016256,2]
[347169353,1735541440924,-237.54,0.00016256,2]
[347169354,1735541440933,-1588.19,0.00016256,2]
[347169355,1735541440942,-6394.03,0.00016256,2]
[347169356,1735541440951,-4239.8,0.00016256,2]
[347169357,1735541440960,-663.41,0.00016256,2]
[347169359,1735541440969,-500.0,0.00016256,2]
[347169361,1735541440978,-500.0,0.00016256,2]
[347169363,1735541440987,-1847.64,0.00016256,2]
[347169365,1735541440996,-10077.95,0.00016256,2]
[347169367,1735541441006,-500.0,0.00016256,2]
[347169369,1735541441017,-439.38,0.00016256,2]
[347169370,1735541441027,-629.31,0.00016256,2]
[347169372,1735541441035,-500.0,0.00016256,2]
[347169374,1735541441044,-701.32,0.00016256,2]
[347169376,1735541441053,-423.3554384,0.00016256,2]
[347169378,1735541441062,-500.0,0.00016256,2]
[347169380,1735541441072,-1114.32,0.00016256,2]
[347169383,1735541441081,-500.0,0.00016256,2]
[347169384,1735541441090,-7242.65,0.00016256,2]
[347169386,1735541441099,-1673.8,0.00016256,2]
[347169388,1735541441108,-1371.41,0.00016256,2]
[347169390,1735541441118,-2755.2,0.00016256,2]
[347169392,1735541441127,-596.5,0.00016256,2]
[347169394,1735541441136,-500.0,0.00016256,2]
[347169397,1735541441145,-1496.43,0.00016256,2]
[347169398,1735541441154,-2754.86,0.00016256,2]
[347169400,1735541441164,-355.28,0.00016256,2]
[347169403,1735541441173,-410.11,0.00016256,2]
[347169405,1735541441182,-150.0,0.00016259,2]
[347169406,1735541441191,-150.0,0.0001626,2]
[347169408,1735541441200,-150.0,0.00016265,2]
[347169410,1735541441209,-241.818,0.00016269,2]
[347169412,1735541441218,-150.0,0.00016272,2]
[347169414,1735541441227,-150.0,0.00016273,2]
[347169416,1735541441236,-150.0,0.00016275,2]
[347169418,1735541441245,-150.0,0.00016279,2]
[347169420,1735541441254,-150.0,0.00016289,2]
[347169422,1735541441263,-150.0,0.00016292,2]
[347169424,1735541441272,-1000.0,0.00016299,2]
[347169427,1735541441281,-81418.98472279,0.000163,2]
[347169428,1735541441290,-150.0,0.00016305,2]
[347169430,1735541441299,-150.0,0.00016319,2]
[347169432,1735541441308,-10263.45099983,0.00016319,2]
[347169435,1735541441317,-150.0,0.00016329,2]
[347169437,1735541441326,-150.0,0.00016332,2]
[347169439,1735541441335,-261.5453016,0.00016338,2]
[347169441,1735541441344,-1500.0,0.00016344,2]
[347169443,1735541441353,-500.0,0.00016348,2]
[347169444,1735541441362,-500.0,0.00016355,2]
[347169446,1735541441370,-500.0,0.00016355,2]
[347169448,1735541441379,-500.0,0.00016355,2]
[347169450,1735541441388,-849.17,0.00016355,2]
[347169453,1735541441397,-245.7,0.00016355,2]
[347169455,1735541441406,-560.12,0.00016355,2]
[347169456,1735541441415,-1362.55,0.00016355,2]
[347169458,1735541441424,-500.0,0.00016357,2]
[347169460,1735541441433,-500.0,0.00016357,2]
[347169462,1735541441442,-5800.0,0.00016358,2]
[347169464,1735541441451,-150.0,0.00016364,2]
[347169466,1735541441460,-5800.0,0.00016366,2]
[347169468,1735541441469,-150.0,0.00016369,2]
[347169470,1735541441478,-5800.0,0.00016375,2]
[347169472,1735541441488,-150.0,0.00016379,2]
[347169473,1735541441497,-14647.6995,0.0001638,2]
[347169475,1735541441506,-6389.0714,0.0001638,2]
[347169477,1735541441516,-1977.2522,0.0001638,2]
[347169479,1735541441524,-1321.7928,0.0001638,2]
[347169481,1735541441533,-1000.0,0.0001638,2]
[347169483,1735541441543,-218.38579678,0.0001638,2]
[347169485,1735541441552,-165.01883047,0.0001638,2]
[347169487,1735541441561,-5800.0,0.00016383,2]
[347169489,1735541441571,-1343.0,0.00016383,2]
[347169491,1735541441580,-218.38579677,0.00016383,2]
[347169493,1735541441589,-218.38579677,0.00016387,2]
[347169495,1735541441597,-218.38579677,0.0001639,2]
[347169496,1735541441606,-5800.0,0.00016392,2]
[347169497,1735541441615,-218.38579677,0.00016393,2]
[347169498,1735541441623,-218.38579677,0.00016397,2]
[347169499,1735541441632,-240.0,0.000164,4]
[347169500,1735541441640,-240.0,0.000164,7]
[347169501,1735541441649,-5800.0,0.000164,2]
[347169502,1735541441658,-230.0,0.000164,8]
[347169503,1735541441667,-228.29,0.000164,8]
[347169504,1735541441675,-218.38579677,0.000164,2]
[347169505,1735541441684,-230.0,0.000164,2]
[347169506,1735541441692,-1996.34172012,0.000164,2]
[347169507,1735541441701,-341.96560507,0.000164,2]
[347169508,1735541441711,-365.0,0.000164,2]
[347169509,1735541441720,-341.96560488,0.000164,2]
[347169510,1735541441729,-341.96560488,0.000164,2]
[347169512,1735541441737,-341.96560488,0.000164,2]
[347169514,1735541441746,-341.96560488,0.000164,2]
[347169516,1735541441755,-341.96560488,0.000164,2]
[347169518,1735541441764,-341.96560488,0.000164,2]
[347169520,1735541441774,-341.96560488,0.000164,2]
[347169522,1735541441783,-1000.0,0.000164,2]
[347169524,1735541441792,-341.96560488,0.000164,2]
[347169526,1735541441800,-341.96560488,0.000164,2]
[347169528,1735541441809,-341.96560488,0.000164,2]
[347169530,1735541441818,-10263.45099983,0.000164,2]
[347169532,1735541441827,-341.96560488,0.000164,2]
[347169534,1735541441836,-150.0,0.00016411,2]
[347169536,1735541441845,-150.0,0.00016427,2]
[347169538,1735541441854,-239.98360066,0.00016435,2]
[347169540,1735541441863,-233.87,0.00016438,2]
[347169542,1735541441872,-233.87,0.00016438,2]
[347169544,1735541441881,-233.87,0.00016438,2]
[347169545,1735541441890,-4084.39,0.00016438,2]
[347169546,1735541441899,-4084.39,0.00016438,2]
[347169547,1735541441909,-4084.39,0.00016438,2]
[347169548,1735541441918,-150.0,0.00016439,2]
[347169549,1735541441928,-150.0,0.00016464,2]
[347169550,1735541441937,-201.11971731,0.00016466,2]
[347169551,1735541441947,-249.98723707,0.00016466,2]
[347169552,1735541441956,-204.40210472,0.00016474,2]
[347169553,1735541441966,-1708.3070495,0.00016477,2]
[347169554,1735541441975,-486.9164699,0.00016477,2]
[347169555,1735541441983,-3209.6266762,0.00016477,2]
[347169556,1735541441992,-500.0,0.00016479,2]
[347169557,1735541442001,-1449.07,0.00016479,2]
[347169558,1735541442011,-90013.26478146,0.0001648,2]
[347169559,1735541442023,-92321.55591084,0.0001648,2]
[347169560,1735541442034,-3826.79999999,0.0001648,2]
[347169561,1735541442045,-4627.87042098,0.0001648,2]
[347169568,1735541442765,-259.5765384,0.00015969,2]
[347169569,1735541442777,-320.808,0.0001616,2]
[347169570,1735541442787,-18430.73540563,0.00016346,2]
[347169571,1735541442941,-7390.591513,0.00016346,2]
[347169572,1735541442953,-68363.51475195,0.00016346,2]
[347169573,1735541442969,-5815.15832942,0.00016346,2]
[347169574,1735541442979,-1948.71171839,0.0001648,2]
[347169575,1735541442990,-1462.80771459,0.0001648,2]
[347169576,1735541443001,-358.67365013,0.0001648,2]
[347169577,1735541443012,-18784.90101382,0.0001648,2]
[347169578,1735541443023,-276.68402316,0.0001648,2]
[347169579,1735541443035,-2901.18779003,0.0001648,2]
[347169580,1735541443046,-11467.06769897,0.0001648,2]
[347169581,1735541443057,-8127.0,0.0001648,2]
[347169592,1735541445647,-341.96560488,0.000164,2]
[347169594,1735541445656,-10930.99148539,0.0001648,2]
[347169595,1735541445667,-32777.98806115,0.0001648,2]
[347169596,1735541445678,-11172.37992,0.0001648,2]
[347169597,1735541445938,-6554.4919651,0.0001648,2]
[347169598,1735541445949,-23449.66708463,0.0001648,2]
[347169599,1735541445964,-27753.86190212,0.0001648,2]
[347169600,1735541445975,-179243.8553335,0.0001648,2]
[347169601,1735541445986,-8119.88488745,0.0001648,2]
[347169602,1735541445999,-938.5984628,0.0001648,2]
[347169603,1735541446011,-22200.000002,0.0001648,2]
[347169604,1735541446022,-15398.6716932,0.0001648,2]
[347169605,1735541446033,-882.47667716,0.0001648,2]
[347169606,1735541446043,-5192.7683044,0.0001648,2]
[347169607,1735541446055,-660.00000004,0.0001648,2]
[347169608,1735541446066,-831.97819889,0.0001648,2]
[347169619,1735541514832,450.0,0.00012,2]
[347169620,1735541659512,152.51540999,0.0002,120]
[347169621,1735541965758,8658.12186975,0.00012999,2]
[347169622,1735542273991,41798.90214549,0.00013,2]
[347169623,1735542327096,442.68,0.00012737,2]
[347169624,1735542386404,171.61,0.00010137,2]
[347169625,1735542545163,-500.0,0.00014,2]
[347169626,1735542545184,-167.11,0.00014223,2]
[347169627,1735542545204,-381.4704,0.00014253,2]
[347169640,1735542631921,-258.9496,0.00014253,2]
[347169641,1735542631931,-1000.0,0.00014434,2]
[347169642,1735542631941,-240.0,0.00014498,2]
[347169643,1735542631950,-7933.83593198,0.00014499,2]
[347169644,1735542631962,-645.68327467,0.00014499,2]
[347169645,1735542632072,-78.6026631,0.00014499,2]
[347169651,1735542632352,-150.0,0.00014819,2]
[347169652,1735542632371,-150.0,0.00014819,2]
[347169653,1735542632380,-150.0,0.00014819,2]
[347169654,1735542632390,-150.0,0.00014819,2]
[347169655,1735542632399,-33.42101007,0.00014819,2]
[347169656,1735542632410,-116.57898993,0.00014819,2]
[347169657,1735542632419,-150.0,0.00014841,2]
[347169658,1735542632428,-150.0,0.00014847,2]
[347169659,1735542632437,-150.0,0.00014862,2]
[347169660,1735542632446,-150.0,0.00014864,2]
[347169661,1735542632455,-150.0,0.00014875,2]
[347169662,1735542632465,-150.0,0.00014883,2]
[347169663,1735542632475,-150.0,0.00014903,2]
[347169664,1735542632487,-150.0,0.00014905,2]
[347169665,1735542632496,-49.73489956,0.00014908,2]
[347169666,1735542632508,-100.26510044,0.00014908,2]
[347169667,1735542632518,-495.29,0.00014919,2]
[347169668,1735542632527,-150.0,0.00014926,2]
[347169669,1735542632536,-150.0,0.00014931,2]
[347169670,1735542632546,-150.0,0.00014946,2]
[347169671,1735542632555,-150.0,0.00014947,2]
[347169672,1735542632564,-150.0,0.00014953,2]
[347169673,1735542632574,-150.0,0.00014959,2]
[347169674,1735542632583,-150.0,0.00014969,2]
[347169675,1735542632592,-150.0,0.00014987,2]
[347169676,1735542632602,-150.0,0.0001499,2]
[347169677,1735542632611,-150.0,0.00014997,2]
[347169678,1735542632620,-37.33428132,0.00015001,2]
[347169679,1735542632633,-405.34571868,0.00015001,2]
[347169680,1735542632642,-150.0,0.00015012,2]
[347169681,1735542632651,-150.0,0.00015015,2]
[347169682,1735542632661,-150.0,0.00015033,2]
[347169683,1735542632674,-150.0,0.00015042,2]
[347169684,1735542632684,-150.0,0.00015042,2]
[347169685,1735542632693,-150.0,0.00015054,2]
[347169686,1735542632702,-150.0,0.0001507,2]
[347169687,1735542632712,-150.0,0.00015072,2]
[347169688,1735542632722,-8710.25,0.00015074,2]
[347169689,1735542632731,-150.0,0.00015076,2]
[347169690,1735542632742,-150.0,0.00015086,2]
[347169691,1735542632751,-150.0,0.00015086,2]
[347169692,1735542632761,-150.0,0.00015097,2]
[347169693,1735542632771,-150.0,0.00015098,2]
[347169694,1735542632780,-182.64,0.0001511,2]
[347169695,1735542632790,-250.0,0.00015117,2]
[347169696,1735542632799,-150.0,0.00015119,2]
[347169697,1735542632808,-150.0,0.00015126,2]
[347169698,1735542632818,-150.0,0.00015131,2]
[347169699,1735542632827,-150.0,0.0001514,2]
[347169700,1735542632836,-150.0,0.00015154,2]
[347169701,1735542632846,-150.0,0.00015161,2]
[347169702,1735542632856,-150.0,0.00015175,2]
[347169703,1735542632866,-150.0,0.00015182,2]
[347169704,1735542632875,-150.0,0.00015183,2]
[347169705,1735542632884,-745.5,0.00015199,2]
[347169706,1735542632893,-150.0,0.00015199,2]
[347169707,1735542632903,-150.0,0.00015204,2]
[347169708,1735542632914,-150.0,0.0001521,2]
[347169709,1735542632923,-1057.0,0.00015215,2]
[347169710,1735542632932,-150.0,0.0001522,2]
[347169711,1735542632941,-150.0,0.00015225,2]
[347169712,1735542632951,-150.0,0.00015238,2]
[347169713,1735542632960,-150.0,0.00015247,2]
[347169714,1735542632970,-150.0,0.00015264,2]
[347169715,1735542632979,-150.0,0.00015266,2]
[347169716,1735542632988,-150.0,0.00015268,2]
[347169717,1735542632997,-150.0,0.0001529,2]
[347169718,1735542633007,-150.0,0.00015294,2]
[347169719,1735542633016,-150.0,0.00015309,2]
[347169720,1735542633026,-150.0,0.00015311,2]
[347169721,1735542633035,-150.0,0.00015322,2]
[347169722,1735542633045,-150.0,0.00015326,2]
[347169723,1735542633055,-168.98,0.00015332,2]
[347169724,1735542633064,-150.0,0.00015332,2]
[347169725,1735542633074,-150.0,0.00015349,2]
[347169726,1735542633083,-150.0,0.00015353,2]
[347169727,1735542633094,-150.0,0.00015354,2]
[347169728,1735542633103,-150.0,0.00015375,2]
[347169729,1735542633113,-150.0,0.00015377,2]
[347169730,1735542633122,-506.87,0.00015378,2]
[347169731,1735542633132,-491.14,0.00015378,2]
[347169732,1735542633141,-502.78,0.00015378,2]
[347169733,1735542633150,-150.0,0.00015397,2]
[347169734,1735542633159,-150.0,0.00015398,2]
[347169735,1735542633169,-6668.0,0.000154,2]
[347169736,1735542633178,-150.0,0.00015405,2]
[347169737,1735542633188,-150.0,0.00015418,2]
[347169738,1735542633197,-150.0,0.00015433,2]
[347169739,1735542633207,-150.0,0.00015439,2]
[347169740,1735542633216,-150.0,0.00015442,2]
[347169741,1735542633225,-150.0,0.00015452,2]
[347169742,1735542633235,-150.0,0.00015461,2]
[347169743,1735542633244,-150.0,0.00015461,2]
[347169744,1735542633253,-150.0,0.00015482,2]
[347169745,1735542633262,-150.0,0.00015487,2]
[347169746,1735542633272,-150.0,0.00015489,2]
[347169747,1735542633281,-150.0,0.00015503,2]
[347169748,1735542633291,-150.0,0.00015517,2]
[347169749,1735542633300,-150.0,0.00015525,2]
[347169750,1735542633310,-150.0,0.00015531,2]
[347169751,1735542633319,-1450.07,0.00015534,2]
[347169752,1735542633327,-150.0,0.00015545,2]
[347169753,1735542633336,-150.0,0.00015546,2]
[347169754,1735542633346,-150.0,0.00015568,2]
[347169755,1735542633355,-150.0,0.00015573,2]
[347169756,1735542633364,-150.0,0.00015576,2]
[347169757,1735542633373,-150.0,0.00015579,2]
[347169758,1735542633382,-150.0,0.00015589,2]
[347169759,1735542633393,-150.0,0.00015601,2]
[347169760,1735542633402,-5665.0006,0.00015609,2]
[347169761,1735542633411,-1000.0,0.00015609,2]
[347169762,1735542633421,-150.0,0.0001561,2]
[347169763,1735542633430,-3642.0,0.00015616,2]
[347169764,1735542633439,-150.0,0.0001562,2]
[347169765,1735542633448,-150.0,0.00015629,2]
[347169766,1735542633457,-150.0,0.00015632,2]
[347169767,1735542633467,-150.0,0.00015643,2]
[347169768,1735542633476,-150.0,0.00015647,2]
[347169769,1735542633485,-150.0,0.00015653,2]
[347169770,1735542633494,-150.0,0.00015656,2]
[347169771,1735542633503,-502.441,0.0001566,2]
[347169772,1735542633513,-150.0,0.00015665,2]
[347169773,1735542633521,-529.78,0.00015671,14]
[347169774,1735542633531,-365.19,0.00015671,2]
[347169775,1735542633540,-150.0,0.00015671,2]
[347169776,1735542633549,-150.0,0.00015675,2]
[347169777,1735542633558,-150.0,0.00015675,2]
[347169778,1735542633567,-150.0,0.00015684,2]
[347169779,1735542633577,-150.0,0.00015696,2]
[347169780,1735542633586,-150.0,0.00015706,2]
[347169781,1735542633595,-500.0,0.00015708,2]
[347169782,1735542633604,-500.0,0.00015708,2]
[347169783,1735542633614,-330.12,0.00015708,2]
[347169784,1735542633623,-500.0,0.00015708,2]
[347169785,1735542633632,-150.0,0.00015709,2]
[347169786,1735542633641,-150.0,0.00015712,2]
[347169787,1735542633651,-300.0,0.00015714,2]
[347169788,1735542633661,-150.0,0.00015717,2]
[347169789,1735542633675,-150.0,0.00015739,2]
[347169790,1735542633684,-150.0,0.0001574,2]
[347169791,1735542633694,-150.0,0.00015754,2]
[347169792,1735542633703,-150.0,0.0001576,2]
[347169793,1735542633713,-150.0,0.00015768,2]
[347169794,1735542633722,-150.0,0.00015781,2]
[347169795,1735542633732,-150.0,0.00015796,2]
[347169796,1735542633741,-150.0,0.00015798,2]
[347169797,1735542633751,-150.0,0.00015803,2]
[347169798,1735542633761,-150.0,0.00015824,2]
[347169799,1735542633771,-150.0,0.00015824,2]
[347169800,1735542633780,-150.0,0.00015832,2]
[347169801,1735542633789,-150.0,0.00015843,2]
[347169802,1735542633798,-150.0,0.00015846,2]
[347169803,1735542633808,-150.0,0.00015852,2]
[347169804,1735542633817,-150.0,0.00015867,2]
[347169805,1735542633827,-150.0,0.00015873,2]
[347169806,1735542633836,-150.0,0.0001588,2]
[347169807,1735542633845,-150.0,0.00015887,2]
[347169808,1735542633854,-150.0,0.00015888,2]
[347169809,1735542633864,-150.0,0.00015908,2]
[347169810,1735542633873,-150.0,0.0001591,2]
[347169811,1735542633883,-150.0,0.00015931,2]
[347169812,1735542633892,-150.0,0.00015932,2]
[347169813,1735542633901,-150.0,0.00015936,2]
[347169814,1735542633911,-150.0,0.00015937,2]
[347169815,1735542633921,-3891.0,0.00015937,2]
[347169816,1735542633930,-5769.124,0.00015937,2]
[347169817,1735542633939,-150.0,0.00015953,2]
[347169818,1735542633949,-150.0,0.00015959,2]
[347169819,1735542633959,-150.0,0.00015963,2]
[347169820,1735542633968,-150.0,0.00015974,2]
[347169821,1735542633977,-150.0,0.00015976,2]
[347169822,1735542633987,-500.0,0.00015982,2]
[347169823,1735542633997,-478.63301073,0.00015982,2]
[347169824,1735542634007,-500.0,0.00015987,2]
[347169825,1735542634017,-700.0,0.00015987,2]
[347169826,1735542634027,-150.0,0.00015991,2]
[347169827,1735542634037,-150.0,0.00015995,2]
[347169828,1735542634046,-8658.12186975,0.00015999,2]
[347169829,1735542634056,-260.46975277,0.00016,2]
[347169830,1735542634070,-289.53024723,0.00016,2]
[347169831,1735542634080,-600.0,0.00016004,2]
[347169832,1735542634090,-600.0,0.00016004,2]
[347169833,1735542634100,-499.4,0.00016004,2]
[347169834,1735542634109,-150.0,0.00016011,2]
[347169835,1735542634119,-1057.0,0.00016016,2]
[347169836,1735542634129,-150.0,0.00016017,2]
[347169837,1735542634138,-150.0,0.00016019,2]
[347169838,1735542634148,-150.0,0.00016021,2]
[347169839,1735542634157,-150.0,0.00016035,2]
[347169840,1735542634166,-150.0,0.00016038,2]
[347169841,1735542634175,-150.0,0.00016047,2]
[347169842,1735542634184,-150.0,0.00016059,2]
[347169843,1735542634192,-1005.6246,0.0001606,2]
[347169844,1735542634201,-150.0,0.00016065,2]
[347169845,1735542634211,-150.0,0.00016075,2]
[347169846,1735542634221,-150.0,0.00016081,2]
[347169847,1735542634230,-150.0,0.00016086,2]
[347169848,1735542634239,-150.0,0.00016086,2]
[347169849,1735542634249,-150.0,0.00016102,2]
[347169850,1735542634258,-150.0,0.00016103,2]
[347169851,1735542634269,-150.0,0.0001611,2]
[347169852,1735542634279,-150.0,0.00016124,2]
[347169853,1735542634289,-150.0,0.00016131,2]
[347169854,1735542634300,-150.0,0.00016145,2]
[347169855,1735542634309,-150.0,0.00016154,2]
[347169856,1735542634320,-150.0,0.00016159,2]
[347169857,1735542634330,-1972.542,0.0001616,2]
[347169858,1735542634340,-1264.0,0.0001616,2]
[347169859,1735542634349,-150.0,0.0001616,2]
[347169860,1735542634360,-565.0,0.0001616,2]
[347169861,1735542634369,-1898.0,0.0001616,2]
[347169862,1735542634379,-917.0,0.0001616,2]
[347169863,1735542634389,-817.0,0.0001616,2]
[347169864,1735542634399,-3769.0,0.0001616,2]
[347169865,1735542634409,-536.0,0.0001616,2]
[347169866,1735542634419,-150.0,0.00016166,2]
[347169867,1735542634429,-1500.0,0.00016173,2]
[347169868,1735542634440,-150.0,0.00016187,2]
[347169869,1735542634449,-150.0,0.00016188,2]
[347169870,1735542634461,-429.34778484,0.00016195,2]
[347169871,1735542634471,-150.0,0.00016199,2]
[347169872,1735542634480,-150.0,0.00016209,2]
[347169873,1735542634490,-1500.0,0.0001621,2]
[347169874,1735542634499,-150.0,0.00016212,2]
[347169875,1735542634509,-216.49075896,0.00016213,2]
[347169876,1735542634519,-150.0,0.00016215,2]
[347169877,1735542634529,-150.0,0.00016225,2]
[347169878,1735542634539,-150.0,0.00016227,2]
[347169879,1735542634550,-150.0,0.00016227,2]
[347169880,1735542634562,-150.0,0.00016229,2]
[347169881,1735542634572,-150.0,0.00016231,2]
[347169882,1735542634582,-150.0,0.00016231,2]
[347169883,1735542634592,-1000.0,0.00016238,2]
[347169884,1735542634601,-150.0,0.00016238,2]
[347169885,1735542634611,-154.22335431,0.00016238,2]
[347169886,1735542634621,-150.0,0.00016242,2]
[347169887,1735542634630,-150.0,0.00016243,2]
[347169888,1735542634640,-150.0,0.00016252,2]
[347169889,1735542634650,-150.0,0.00016252,2]
[347169890,1735542634660,-4986.16,0.00016253,2]
[347169891,1735542634672,-249.87,0.00016253,2]
[347169892,1735542634682,-150.0,0.00016253,2]
[347169893,1735542634691,-150.0,0.00016254,2]
[347169894,1735542634701,-500.0,0.00016256,2]
[347169895,1735542634711,-150.0,0.00016268,2]
[347169896,1735542634721,-150.0,0.0001627,2]
[347169897,1735542634730,-150.0,0.0001627,2]
[347169898,1735542634740,-150.0,0.00016273,2]
[347169899,1735542634749,-150.0,0.00016277,2]
[347169900,1735542634760,-155.69132602,0.00016279,2]
[347169901,1735542634769,-150.0,0.00016284,2]
[347169902,1735542634779,-150.0,0.00016288,2]
[347169903,1735542634789,-250.30866661,0.00016291,2]
[347169904,1735542634801,-150.0,0.00016295,2]
[347169905,1735542634811,-150.0,0.00016298,2]
[347169906,1735542634822,-155.69132597,0.00016299,2]
[347169907,1735542634833,-1000.0,0.000163,2]
[347169908,1735542634843,-150.0,0.00016304,2]
[347169909,1735542634852,-150.0,0.00016316,2]
[347169910,1735542634863,-150.0,0.00016317,2]
[347169911,1735542634872,-155.69132597,0.00016319,2]
[347169912,1735542634882,-1783.73899,0.0001632,2]
[347169913,1735542634891,-150.0,0.00016321,2]
[347169914,1735542634901,-150.0,0.00016324,2]
[347169915,1735542634910,-150.0,0.00016326,2]
[347169916,1735542634920,-1500.0,0.00016328,2]
[347169917,1735542634929,-150.0,0.00016332,2]
[347169918,1735542634938,-150.0,0.00016334,2]
[347169919,1735542634947,-1500.0,0.00016337,2]
[347169920,1735542634956,-150.0,0.00016337,2]
[347169921,1735542634966,-150.0,0.00016339,2]
[347169922,1735542634975,-155.69132597,0.0001634,2]
[347169923,1735542634984,-1500.0,0.00016347,2]
[347169924,1735542634994,-500.0,0.00016348,2]
[347169925,1735542635003,-150.0,0.00016354,2]
[347169926,1735542635013,-1500.0,0.00016356,2]
[347169927,1735542635023,-150.0,0.00016358,2]
[347169928,1735542635032,-150.0,0.00016359,2]
[347169929,1735542635041,-155.69132597,0.0001636,2]
[347169930,1735542635051,-150.0,0.00016361,2]
[347169931,1735542635060,-150.0,0.00016368,2]
[347169932,1735542635070,-150.0,0.00016371,2]
[347169933,1735542635080,-150.0,0.00016377,2]
[347169934,1735542635090,-1000.0,0.00016378,2]
[347169935,1735542635099,-1479.58626889,0.00016379,2]
[347169936,1735542635109,-1479.58626889,0.00016379,2]
[347169937,1735542635119,-1479.58626889,0.00016379,2]
[347169938,1735542635128,-1479.58626889,0.00016379,2]
[347169939,1735542635137,-1479.58626889,0.00016379,2]
[347169940,1735542635146,-4786.10204307,0.00016379,2]
[347169941,1735542635307,-213.89795693,0.00016379,2]
[347169942,1735542635317,-174.2347484,0.0001638,2]
[347169943,1735542635328,-1305.35152049,0.0001638,2]
[347169944,1735542635337,-691.86582746,0.0001638,2]
[347169945,1735542635409,-787.72044143,0.0001638,2]
[347169946,1735542635418,-1479.58626889,0.0001638,2]
[347169947,1735542635427,-1479.58626889,0.0001638,2]
[347169948,1735542635437,-500.0,0.0001638,2]
[347169949,1735542635446,-107.3571757,0.0001638,2]
[347169950,1735542637842,-1097.69749968,0.00016044,2]
[347169951,1735542637852,-1372.22909319,0.0001638,2]
[347169952,1735542637862,-155.69132597,0.0001638,2]
[347169953,1735542637871,-2383.00388752,0.0001638,2]
[347169954,1735542637881,-150.0,0.0001638,2]
[347169955,1735542637890,-150.0,0.00016382,2]
[347169956,1735542637900,-5800.0,0.00016383,2]
[347169957,1735542637909,-150.0,0.00016389,2]
[347169958,1735542637919,-150.0,0.0001639,2]
[347169959,1735542637929,-2383.00388751,0.0001639,2]